bitfinex/quotes_BTCUSD_20240607
["timestamp","ask_amount","ask_price","bid_price","bid_amount"]
[1717778118158,1.36912755,71027.0,71026.0,0.009493]
[1717778118356,1.38112755,71027.0,71026.0,0.009493]
[1717778118577,1.22392755,71027.0,71026.0,0.009493]
[1717778119011,0.93134455,71027.0,71026.0,0.009493]
[1717778119628,1.21292755,71027.0,71026.0,0.009493]
[1717778120448,1.21192755,71027.0,71026.0,0.009493]
[1717778120654,1.23392755,71027.0,71026.0,0.009493]
[1717778120868,0.40604056,71027.0,71026.0,0.255493]
[1717778121079,0.16541893,71027.0,71026.0,0.26742538]
[1717778121281,0.17441893,71027.0,71026.0,0.27385838]
[1717778121413,0.31520993,71027.0,71026.0,0.26514178]
[1717778121843,0.34773092,71027.0,71026.0,0.26514178]
[1717778122042,0.31773092,71027.0,71026.0,0.26514178]
[1717778122276,0.31773092,71027.0,71026.0,0.255493]
[1717778122482,0.31773092,71027.0,71026.0,0.256493]
[1717778122683,0.31773092,71027.0,71026.0,0.26614178]
[1717778123480,0.32773092,71027.0,71026.0,0.26614178]
[1717778123860,0.32773092,71027.0,71026.0,0.26514178]
[1717778124063,0.31773092,71027.0,71026.0,0.26714178]
[1717778124678,0.31773092,71027.0,71026.0,0.26514178]
[1717778124886,0.32773092,71027.0,71026.0,0.26714178]
[1717778125090,0.31773092,71027.0,71026.0,0.26714178]
[1717778125705,0.32773092,71027.0,71026.0,0.26714178]
[1717778126139,0.60931392,71027.0,71026.0,0.26714178]
[1717778126563,0.59931392,71027.0,71026.0,0.26714178]
[1717778126770,0.59931392,71027.0,71026.0,0.26514178]
[1717778127188,0.59931392,71027.0,71026.0,0.26714178]
[1717778127797,0.59931392,71027.0,71026.0,0.26514178]
[1717778128200,0.59931392,71027.0,71026.0,0.26714178]
[1717778128601,0.56679293,71027.0,71026.0,0.27714178]
[1717778129426,0.28520993,71027.0,71026.0,0.27714178]
[1717778129633,0.28520993,71027.0,71026.0,0.27907416]
[1717778130421,0.14441893,71027.0,71026.0,0.27907416]
[1717778130621,0.14441893,71027.0,71026.0,0.29907416]
[1717778130990,0.14441893,71027.0,71026.0,0.27907416]
[1717778131607,0.28520993,71027.0,71026.0,0.27907416]
[1717778131815,0.28520993,71027.0,71026.0,0.27530747]
[1717778132029,0.31373092,71027.0,71026.0,0.27530747]
[1717778132244,0.31373092,71027.0,71026.0,0.29530747]
[1717778132245,0.14441893,71027.0,71026.0,0.29530747]
[1717778132455,0.14441893,71027.0,71026.0,0.28942538]
[1717778132665,0.14441893,71027.0,71026.0,0.29530254]
[1717778133087,0.14441893,71027.0,71026.0,0.44139658]
[1717778133314,0.14441893,71027.0,71026.0,0.43939658]
[1717778133785,0.14441893,71027.0,71026.0,0.44139658]
[1717778134421,0.14441893,71027.0,71026.0,0.58218958]
[1717778135501,0.14441893,71027.0,71026.0,0.44139658]
[1717778136350,0.14441893,71027.0,71026.0,0.43939658]
[1717778136760,0.140763,71042.0,71041.0,0.25673238]
[1717778136984,0.37477246,71042.0,71041.0,0.25673238]
[1717778137201,0.14441893,71042.0,71041.0,0.26257892]
[1717778137428,0.13835624,71042.0,71041.0,0.25673238]
[1717778137637,0.13835624,71042.0,71041.0,0.26257892]
[1717778138038,0.14035624,71042.0,71041.0,0.26257892]
[1717778138199,0.28311724,71042.0,71041.0,0.28257892]
[1717778138393,0.28311724,71042.0,71041.0,0.25673238]
[1717778138901,0.28311724,71042.0,71041.0,0.26257933]
[1717778139377,0.14235624,71042.0,71041.0,0.26257933]
[1717778139552,0.14235624,71042.0,71041.0,0.28257933]
[1717778139716,0.14235624,71042.0,71041.0,0.25673238]
[1717778139918,0.14235624,71042.0,71041.0,0.26256618]
[1717778140327,0.28311724,71042.0,71041.0,0.28256618]
[1717778140524,0.14235624,71042.0,71041.0,0.26256618]
[1717778141346,0.14235624,71042.0,71041.0,0.28256618]
[1717778142089,0.14235624,71042.0,71041.0,0.56938559]
[1717778143351,0.14035624,71042.0,71041.0,0.56938559]
[1717778143564,0.13835624,71042.0,71041.0,0.42532918]
[1717778143821,0.13835624,71042.0,71041.0,0.57337901]
[1717778144034,0.00086,71050.0,71049.0,0.03193238]
[1717778144244,0.14527893,71050.0,71049.0,0.27933238]
[1717778144453,0.14527893,71050.0,71049.0,0.42007938]
[1717778144672,0.14527893,71050.0,71049.0,0.57193168]
[1717778144673,0.00086,71050.0,71049.0,0.57193168]
[1717778144887,0.240712,71067.0,71049.0,0.57193168]
[1717778144888,0.140712,71067.0,71066.0,0.01193238]
[1717778145109,0.140707,71070.0,71069.0,0.01193238]
[1717778145315,0.28512593,71070.0,71069.0,0.01193238]
[1717778145526,0.28512593,71070.0,71069.0,0.01771403]
[1717778146384,0.28512593,71070.0,71069.0,0.01578165]
[1717778147227,0.38512593,71070.0,71069.0,0.01771403]
[1717778147664,0.38512593,71070.0,71069.0,0.01971403]
[1717778147871,0.28512593,71070.0,71069.0,0.01971403]
[1717778148081,0.14441893,71070.0,71069.0,0.01971403]
[1717778148319,0.14441893,71070.0,71069.0,0.02171403]
[1717778148971,0.14441893,71070.0,71069.0,0.04171403]
[1717778149194,0.14441893,71070.0,71069.0,0.27401403]
[1717778150257,0.14441893,71070.0,71069.0,0.25401403]
[1717778151074,0.14441893,71070.0,71069.0,0.27401403]
[1717778151308,0.14441893,71070.0,71069.0,0.25401403]
[1717778151985,0.14441893,71070.0,71069.0,0.27401403]
[1717778152222,0.14441893,71070.0,71069.0,0.25401403]
[1717778153330,0.14441893,71070.0,71069.0,0.27401403]
[1717778154848,0.14441893,71070.0,71069.0,0.41472203]
[1717778155044,0.14441893,71070.0,71069.0,0.41272203]
[1717778155412,0.14441893,71070.0,71069.0,0.56071303]
[1717778155597,0.14441893,71070.0,71069.0,0.55871303]
[1717778155727,0.14441893,71070.0,71069.0,0.56071303]
[1717778156597,0.00086,71072.0,71071.0,0.170704]
[1717778156918,0.14466939,71072.0,71071.0,0.55962738]
[1717778157119,0.14466939,71072.0,71071.0,0.56535963]
[1717778158042,0.14466939,71072.0,71071.0,0.56935963]
[1717778160039,0.00025046,71072.0,71071.0,0.56935963]
[1717778161339,0.00025046,71072.0,71071.0,0.56735963]
[1717778161757,0.00025046,71072.0,71071.0,1.05076763]
[1717778161958,0.00025046,71072.0,71071.0,1.04876763]
[1717778162389,0.00025046,71072.0,71071.0,1.33017563]
[1717778162587,0.00025046,71072.0,71071.0,0.84876763]
[1717778163457,0.00025046,71072.0,71071.0,0.85076763]
[1717778164143,0.00025046,71072.0,71071.0,0.59047852]
[1717778164377,0.00025046,71072.0,71071.0,0.40865563]
[1717778164378,0.14466939,71072.0,71071.0,0.40865563]
[1717778164587,0.14466939,71072.0,71071.0,0.54935963]
[1717778166014,0.14466939,71072.0,71071.0,0.40865563]
[1717778167604,0.14466939,71072.0,71071.0,0.26266463]
[1717778167822,0.14466939,71072.0,71071.0,0.40865688]
[1717778169522,0.14466939,71072.0,71071.0,0.42865688]
[1717778170601,0.14466939,71072.0,71071.0,0.66876665]
[1717778170816,0.14466939,71072.0,71071.0,0.98834909]
[1717778170817,0.00025046,71072.0,71071.0,0.98834909]
[1717778171493,0.00025046,71072.0,71071.0,1.26975709]
[1717778171938,0.00025046,71072.0,71071.0,1.26775709]
[1717778172372,0.00025046,71072.0,71071.0,1.26975709]
[1717778172577,0.00025046,71072.0,71071.0,1.54916509]
[1717778172785,0.00025046,71072.0,71071.0,1.26775709]
[1717778172997,0.00025046,71072.0,71071.0,1.26975709]
[1717778173224,0.00025046,71072.0,71071.0,1.26775709]
[1717778173627,0.00025046,71072.0,71071.0,1.26875709]
[1717778173846,0.00025046,71072.0,71071.0,1.30501969]
[1717778174076,0.00086,71092.0,71091.0,0.03193238]
[1717778174281,0.14527893,71092.0,71091.0,0.37691284]
[1717778174540,0.14527893,71092.0,71091.0,0.39691284]
[1717778174749,0.14527893,71092.0,71091.0,0.3835609]
[1717778175877,0.39341882,71092.0,71091.0,0.39274468]
[1717778176098,0.92322585,71092.0,71091.0,0.15264031]
[1717778176314,0.91322585,71092.0,71091.0,0.15264031]
[1717778176532,0.91322585,71092.0,71091.0,0.14799225]
[1717778176744,0.92322585,71092.0,71091.0,0.14799225]
[1717778176951,0.92324208,71092.0,71091.0,0.14799225]
[1717778177158,0.92324208,71092.0,71091.0,0.003]
[1717778177385,0.91324208,71092.0,71091.0,0.148998]
[1717778177589,0.92324208,71092.0,71091.0,0.147998]
[1717778177793,0.92324208,71092.0,71091.0,0.145998]
[1717778177994,0.92524208,71092.0,71091.0,0.145998]
[1717778178220,0.92524208,71092.0,71091.0,0.147998]
[1717778178429,0.88216419,71092.0,71091.0,0.145998]
[1717778178653,0.88216419,71092.0,71091.0,0.14599349]
[1717778178654,0.46017567,71092.0,71091.0,0.14599349]
[1717778178861,0.46317567,71092.0,71091.0,0.14599349]
[1717778179068,0.46317567,71092.0,71091.0,0.15264666]
[1717778179303,0.46317567,71092.0,71091.0,0.14599349]
[1717778179507,0.46717567,71092.0,71091.0,0.15264666]
[1717778179784,0.46317567,71092.0,71091.0,0.15264666]
[1717778179960,0.46317567,71092.0,71091.0,0.16457904]
[1717778180186,0.46017567,71092.0,71091.0,0.16457904]
[1717778180363,0.60083767,71092.0,71091.0,0.16457904]
[1717778180572,0.60383767,71092.0,71091.0,0.15264666]
[1717778180776,0.60383767,71092.0,71091.0,0.14599349]
[1717778180980,0.60083767,71092.0,71091.0,0.14599349]
[1717778181300,0.35893767,71092.0,71091.0,0.15792587]
[1717778181518,0.22527567,71092.0,71091.0,0.17792587]
[1717778181727,0.22527567,71092.0,71091.0,0.4198431]
[1717778182147,0.14927893,71092.0,71091.0,0.63879239]
[1717778182365,0.14527893,71092.0,71091.0,0.63879239]
[1717778182573,0.14527893,71092.0,71091.0,0.64079239]
[1717778182978,0.14527893,71092.0,71091.0,0.63879239]
[1717778183428,0.14527893,71092.0,71091.0,0.64079239]
[1717778183633,0.14527893,71092.0,71091.0,0.64179239]
[1717778184049,0.14527893,71092.0,71091.0,0.64079239]
[1717778184465,0.14527893,71092.0,71091.0,0.64179239]
[1717778185096,0.14527893,71092.0,71091.0,0.62179239]
[1717778185309,0.00086,71092.0,71091.0,0.64179239]
[1717778185721,0.00086,71092.0,71091.0,0.78245639]
[1717778187620,0.00086,71092.0,71091.0,0.78145639]
[1717778187757,0.00086,71092.0,71091.0,0.98145639]
[1717778187960,0.00086,71092.0,71091.0,0.78245639]
[1717778188580,0.00086,71092.0,71091.0,0.98045639]
[1717778188832,0.00086,71092.0,71091.0,0.98034534]
[1717778189024,0.00086,71092.0,71091.0,0.78234534]
[1717778191428,0.00086,71092.0,71091.0,0.5634463]
[1717778192186,0.00086,71092.0,71091.0,0.41751361]
[1717778192398,0.00086,71092.0,71091.0,0.58456615]
[1717778193863,0.00086,71092.0,71091.0,0.5634522]
[1717778201436,0.00086,71092.0,71091.0,0.5434522]
[1717778202157,0.00086,71092.0,71091.0,0.3894522]
[1717778202367,0.00086,71092.0,71091.0,0.3083522]
[1717778202611,0.14527893,71092.0,71091.0,0.1676882]
[1717778204120,0.14527893,71092.0,71091.0,0.16769744]
[1717778205471,0.38037893,71092.0,71091.0,0.16769744]
[1717778205672,0.52104093,71092.0,71091.0,0.15576506]
[1717778205938,0.57314502,71092.0,71091.0,0.003]
[1717778206163,0.57314502,71092.0,71091.0,0.00978814]
[1717778206164,0.64612892,71092.0,71091.0,0.00978814]
[1717778206388,0.64612892,71092.0,71091.0,0.002]
[1717778206608,0.2379,71081.0,71075.0,0.01193238]
[1717778206830,0.14441893,71080.0,71078.0,0.01193238]
[1717778207035,0.14441893,71080.0,71079.0,0.01193238]
[1717778207238,0.21741661,71080.0,71077.0,0.00193238]
[1717778207451,0.07299768,71079.0,71077.0,0.00193238]
[1717778207656,0.07299768,71079.0,71078.0,0.00193238]
[1717778208185,0.07299768,71079.0,71077.0,0.00193238]
[1717778208389,0.140688,71080.0,71078.0,0.00193238]
[1717778208588,0.140688,71080.0,71079.0,0.002]
[1717778208969,0.21368639,71080.0,71079.0,0.002]
[1717778210402,0.21368639,71080.0,71078.0,0.00193238]
[1717778210608,0.2379,71081.0,71079.0,0.01293238]
[1717778210742,0.140679,71084.0,71083.0,0.00193238]
[1717778210942,0.21367393,71084.0,71083.0,0.01193238]
[1717778211360,0.21367393,71084.0,71079.0,0.001]
[1717778211361,0.14068,71083.0,71081.0,0.00193238]
[1717778211586,0.14068,71083.0,71082.0,0.01193238]
[1717778211944,0.28509893,71083.0,71082.0,0.01193238]
[1717778212579,0.35809387,71083.0,71082.0,0.00193238]
[1717778212792,0.35809387,71083.0,71079.0,0.01193238]
[1717778212793,0.35809409,71083.0,71079.0,0.01193238]
[1717778212934,0.35809409,71083.0,71078.0,0.001]
[1717778212935,0.14441893,71082.0,71081.0,0.01193238]
[1717778213564,0.14441893,71082.0,71081.0,0.001]
[1717778213798,0.14441893,71082.0,71081.0,0.003]
[1717778214005,0.14441893,71082.0,71081.0,0.01193238]
[1717778214210,0.14441893,71082.0,71081.0,0.01293238]
[1717778214522,0.14441893,71082.0,71081.0,0.01470059]
[1717778216589,0.14441893,71082.0,71081.0,0.00470059]
[1717778216792,0.14441893,71082.0,71081.0,0.003]
[1717778216961,0.14441893,71082.0,71081.0,0.01470059]
[1717778217521,0.28510093,71082.0,71081.0,0.01470059]
[1717778217798,0.28510093,71082.0,71081.0,0.003]
[1717778218202,0.31361102,71082.0,71081.0,0.003]
[1717778218382,0.61771086,71082.0,71081.0,0.003]
[1717778219439,0.61771086,71082.0,71081.0,0.002]
[1717778219772,0.61771086,71082.0,71081.0,0.003]
[1717778220326,0.90907586,71082.0,71081.0,0.002]
[1717778220539,0.1407,71073.0,71072.0,0.000946]
[1717778220784,0.52621893,71073.0,71072.0,0.000946]
[1717778220986,0.59922783,71073.0,71072.0,0.000946]
[1717778221341,0.52182783,71073.0,71072.0,0.000946]
[1717778221746,0.35812783,71073.0,71072.0,0.000946]
[1717778221951,0.28511893,71073.0,71072.0,0.000946]
[1717778222327,0.35812628,71073.0,71072.0,0.000946]
[1717778223139,0.37778337,71073.0,71072.0,0.000946]
[1717778223349,0.30477602,71073.0,71072.0,0.000946]
[1717778223890,0.3777848,71073.0,71072.0,0.00264659]
[1717778224103,0.3777848,71073.0,71072.0,0.002946]
[1717778224313,0.30477602,71073.0,71072.0,0.003946]
[1717778224522,0.30477602,71073.0,71072.0,0.001946]
[1717778224720,0.30477602,71073.0,71072.0,0.003946]
[1717778225137,0.30477602,71073.0,71072.0,0.001946]
[1717778225377,0.30477602,71073.0,71072.0,0.003946]
[1717778225596,0.30477602,71073.0,71072.0,0.00564659]
[1717778225808,0.30477602,71073.0,71072.0,0.01364659]
[1717778226009,0.30477602,71073.0,71072.0,0.00464659]
[1717778226208,0.30477602,71073.0,71072.0,0.00564659]
[1717778226846,0.30477602,71073.0,71072.0,0.002946]
[1717778227419,0.30477602,71073.0,71072.0,0.01464659]
[1717778227643,0.30477602,71073.0,71072.0,0.01364659]
[1717778227840,0.30477602,71073.0,71072.0,0.01564659]
[1717778228047,0.30477602,71073.0,71072.0,0.0225099]
[1717778228702,0.30477602,71073.0,71072.0,0.0105099]
[1717778228906,0.30477602,71073.0,71072.0,0.01364659]
[1717778229123,0.30477602,71073.0,71072.0,0.01464659]
[1717778229368,0.30477602,71073.0,71072.0,0.01564659]
[1717778230499,0.30477602,71073.0,71072.0,0.01464659]
[1717778230705,0.30477602,71073.0,71072.0,0.01264659]
[1717778230913,0.30477602,71073.0,71072.0,0.01364659]
[1717778231324,0.37778161,71073.0,71072.0,0.00364659]
[1717778231897,0.37778161,71073.0,71072.0,0.00564659]
[1717778232111,0.37778153,71073.0,71072.0,0.00564659]
[1717778232307,0.37778153,71073.0,71072.0,0.00264659]
[1717778232545,0.37778153,71073.0,71072.0,0.00464659]
[1717778232720,0.37778153,71073.0,71072.0,0.003946]
[1717778234296,0.37778153,71073.0,71072.0,0.002946]
[1717778235137,0.37778153,71073.0,71072.0,0.000946]
[1717778235567,0.37778153,71073.0,71072.0,0.002946]
[1717778236447,0.37778153,71073.0,71072.0,0.003946]
[1717778236914,0.37778153,71073.0,71072.0,0.000946]
[1717778237126,0.37778153,71073.0,71072.0,0.001946]
[1717778237353,0.37778153,71073.0,71072.0,0.003946]
[1717778238207,0.37778153,71073.0,71072.0,0.00564659]
[1717778238420,0.37778153,71073.0,71072.0,0.01564659]
[1717778238627,0.3579551,71073.0,71072.0,0.01564659]
[1717778240321,0.3579551,71073.0,71072.0,0.25554659]
[1717778240795,0.3579551,71073.0,71072.0,0.26257752]
[1717778241004,0.3579551,71073.0,71072.0,0.40858831]
[1717778241564,0.21742444,71073.0,71072.0,0.40858831]
[1717778241967,0.21742444,71073.0,71072.0,0.42858831]
[1717778242167,0.14441893,71073.0,71072.0,0.42858831]
[1717778245053,0.14441893,71073.0,71072.0,0.56929031]
[1717778245922,0.14441893,71073.0,71072.0,0.56829031]
[1717778246124,0.14441893,71073.0,71072.0,0.56629031]
[1717778246324,0.14441893,71073.0,71072.0,0.56929031]
[1717778247161,0.14408121,71073.0,71072.0,0.56929031]
[1717778251605,0.14347369,71073.0,71072.0,0.57105361]
[1717778253617,0.14347369,71073.0,71072.0,0.55105361]
[1717778256488,0.14347369,71073.0,71072.0,0.57105361]
[1717778256715,0.00086,71082.0,71081.0,0.01170059]
[1717778256934,0.00086,71082.0,71081.0,0.15771138]
[1717778256935,0.14527893,71082.0,71081.0,0.15771138]
[1717778257156,0.14436767,71082.0,71081.0,0.16647986]
[1717778257825,0.14436767,71082.0,71081.0,0.18647986]
[1717778258056,0.14436767,71082.0,71081.0,0.39877986]
[1717778258274,0.14436767,71082.0,71081.0,0.41877986]
[1717778258459,0.14436767,71082.0,71081.0,0.39877986]
[1717778260889,0.14436767,71082.0,71081.0,0.24207986]
[1717778262171,0.14436767,71082.0,71081.0,0.16647986]
[1717778263450,0.39286767,71082.0,71081.0,0.15477927]
[1717778263889,0.39286767,71082.0,71081.0,0.00876848]
[1717778263890,0.46586262,71082.0,71081.0,0.00876848]
[1717778264099,0.46586262,71082.0,71079.0,0.00170059]
[1717778264321,0.07299495,71081.0,71079.0,0.00170059]
[1717778264534,0.14441893,71080.0,71079.0,0.01170059]
[1717778264757,0.21741388,71080.0,71079.0,0.14769047]
[1717778264977,0.21741388,71080.0,71079.0,0.15769047]
[1717778265187,0.21741388,71080.0,71079.0,0.15576496]
[1717778265416,0.52129988,71080.0,71079.0,0.00977508]
[1717778265858,0.140693,71077.0,71073.0,0.00170059]
[1717778266087,0.21741388,71076.0,71074.0,0.14600219]
[1717778266306,0.07299495,71075.0,71073.0,0.00170059]
[1717778266522,0.14441893,71074.0,71073.0,0.00170059]
[1717778266728,0.21741388,71074.0,71073.0,0.14770255]
[1717778266955,0.21741388,71074.0,71073.0,0.14600196]
[1717778267177,0.21681239,71074.0,71073.0,0.15770255]
[1717778267412,0.14381744,71074.0,71073.0,0.15770255]
[1717778268865,0.14381744,71074.0,71073.0,0.15870255]
[1717778269098,0.14381744,71074.0,71073.0,0.167496]
[1717778269725,0.14381744,71074.0,71073.0,0.168496]
[1717778270361,0.21681497,71074.0,71073.0,0.15679541]
[1717778271610,0.21681497,71074.0,71073.0,0.168496]
[1717778273789,0.21681497,71074.0,71073.0,0.395596]
[1717778274224,0.14381744,71074.0,71073.0,0.395596]
[1717778276406,0.14381744,71074.0,71073.0,0.244096]
[1717778277124,0.14381744,71074.0,71073.0,0.168496]
[1717778277125,0.21651196,71074.0,71073.0,0.168496]
[1717778278206,0.45901196,71074.0,71073.0,0.168496]
[1717778278709,0.45901196,71074.0,71073.0,0.17736586]
[1717778278926,0.45901196,71074.0,71073.0,0.16566527]
[1717778279141,0.45901196,71074.0,71073.0,0.16466527]
[1717778279593,0.59580996,71074.0,71073.0,0.16466527]
[1717778279851,0.59580996,71074.0,71073.0,0.16366527]
[1717778280069,0.59580996,71074.0,71073.0,0.16466527]
[1717778280295,0.59580996,71074.0,71073.0,0.16366527]
[1717778280513,0.59580996,71074.0,71073.0,0.16536586]
[1717778280731,0.59580996,71074.0,71073.0,0.16566527]
[1717778281175,0.59580996,71074.0,71073.0,0.16366527]
[1717778281431,0.59580996,71074.0,71073.0,0.16466527]
[1717778281700,0.59580996,71074.0,71073.0,0.16566527]
[1717778283433,0.35720996,71074.0,71073.0,0.0313639]
[1717778283680,0.21651196,71074.0,71073.0,0.0313639]
[1717778283892,0.21651196,71074.0,71073.0,0.15970461]
[1717778284330,0.14351415,71074.0,71073.0,0.17737428]
[1717778284994,0.14351415,71074.0,71073.0,0.19737428]
[1717778285210,0.14351415,71074.0,71073.0,0.17737428]
[1717778287285,0.14351415,71074.0,71073.0,0.17832028]
[1717778287430,0.14351415,71074.0,71073.0,0.44552028]
[1717778287672,0.14437415,71074.0,71073.0,0.44550784]
[1717778289463,0.14437415,71074.0,71073.0,0.44450784]
[1717778289840,0.14437415,71074.0,71073.0,0.44550784]
[1717778290304,0.14437415,71074.0,71073.0,0.44450784]
[1717778290742,0.14437415,71074.0,71073.0,0.44350784]
[1717778290957,0.14437415,71074.0,71073.0,0.44450784]
[1717778291170,0.14437415,71074.0,71073.0,0.44550784]
[1717778293109,0.14437415,71074.0,71073.0,0.42550784]
[1717778293766,0.21727247,71074.0,71073.0,0.42550784]
[1717778294473,0.21727247,71074.0,71073.0,0.16660725]
[1717778294685,0.35797047,71074.0,71073.0,0.16830784]
[1717778294896,0.35797047,71074.0,71073.0,0.16660725]
[1717778295097,0.52357047,71074.0,71073.0,0.16830784]
[1717778295533,0.52357047,71074.0,71073.0,0.16730784]
[1717778295949,0.52357047,71074.0,71073.0,0.16830784]
[1717778296387,0.52357047,71074.0,71073.0,0.16730784]
[1717778297016,0.52357047,71074.0,71073.0,0.16830784]
[1717778297232,0.52357047,71074.0,71073.0,0.16730784]
[1717778297437,0.45067215,71074.0,71073.0,0.16730784]
[1717778297651,0.52365577,71074.0,71073.0,0.16730784]
[1717778297859,0.58435577,71074.0,71073.0,0.16730784]
[1717778298090,0.58435577,71074.0,71073.0,0.17830784]
[1717778298728,0.41875577,71074.0,71073.0,0.17830784]
[1717778301452,0.41875577,71074.0,71073.0,0.03231626]
[1717778303208,0.35805577,71074.0,71073.0,0.03231626]
[1717778303807,0.41875577,71074.0,71073.0,0.03231626]
[1717778304081,0.41858643,71074.0,71073.0,0.03231626]
[1717778304286,0.4186096,71074.0,71073.0,0.03231626]
[1717778304905,0.4186096,71074.0,71073.0,0.17832597]
[1717778305311,0.3579096,71074.0,71073.0,0.17832597]
[1717778305528,0.4186096,71074.0,71073.0,0.17832597]
[1717778307188,0.41830631,71074.0,71073.0,0.17832597]
[1717778307546,0.35760631,71074.0,71073.0,0.17832597]
[1717778307754,0.41830631,71074.0,71073.0,0.17832597]
[1717778308191,0.41830631,71074.0,71073.0,0.17832598]
[1717778313183,0.35760631,71074.0,71073.0,0.17832598]
[1717778313392,0.41830631,71074.0,71073.0,0.17832598]
[1717778314905,0.41830631,71074.0,71073.0,0.16662539]
[1717778315110,0.41830631,71074.0,71073.0,0.16832598]
[1717778315516,0.41830631,71074.0,71073.0,0.17832598]
[1717778315714,0.41830631,71074.0,71073.0,0.03231626]
[1717778316017,0.41830631,71074.0,71073.0,0.16832671]
[1717778316163,0.41830631,71074.0,71073.0,0.17832671]
[1717778316617,0.41830631,71074.0,71073.0,0.16832671]
[1717778316876,0.41830631,71074.0,71073.0,0.17832671]
[1717778317265,0.41830475,71074.0,71073.0,0.17832672]
[1717778318023,0.41830475,71074.0,71073.0,0.16832672]
[1717778318201,0.41830475,71074.0,71073.0,0.16662613]
[1717778318816,0.41830475,71074.0,71073.0,0.16832672]
[1717778320278,0.35760475,71074.0,71073.0,0.17832672]
[1717778320473,0.41830475,71074.0,71073.0,0.16832672]
[1717778321301,0.41830475,71074.0,71073.0,0.16662613]
[1717778321479,0.41830475,71074.0,71073.0,0.16832672]
[1717778321873,0.41830475,71074.0,71073.0,0.16662613]
[1717778322289,0.41830475,71074.0,71073.0,0.17832672]
[1717778322506,0.35760475,71074.0,71073.0,0.17832672]
[1717778323111,0.41830475,71074.0,71073.0,0.17832672]
[1717778327439,0.41800146,71074.0,71073.0,0.17832672]
[1717778331264,0.35730146,71074.0,71073.0,0.17832672]
[1717778331576,0.41800146,71074.0,71073.0,0.25372672]
[1717778331989,0.27730346,71074.0,71073.0,0.25372672]
[1717778332594,0.21660346,71074.0,71073.0,0.25372672]
[1717778332799,0.21660346,71074.0,71073.0,0.43952672]
[1717778333002,0.07386523,71074.0,71073.0,0.43952672]
[1717778333414,0.00086,71074.0,71073.0,0.67962759]
[1717778333636,0.00086,71074.0,71073.0,0.6585034]
[1717778334049,0.00086,71074.0,71073.0,0.6575034]
[1717778334453,0.00086,71074.0,71073.0,0.7992034]
[1717778335089,0.00086,71074.0,71073.0,0.7972034]
[1717778335504,0.00086,71074.0,71073.0,0.7982034]
[1717778335652,0.00086,71074.0,71073.0,0.7972034]
[1717778335868,0.00086,71074.0,71073.0,1.03937569]
[1717778336070,0.00086,71074.0,71073.0,1.04037569]
[1717778336822,0.00086,71074.0,71073.0,1.04137569]
[1717778337003,0.00086,71074.0,71073.0,1.04037569]
[1717778337433,0.00086,71074.0,71073.0,0.7992034]
[1717778337604,0.00086,71074.0,71073.0,0.9992034]
[1717778338264,0.00086,71074.0,71073.0,0.9982034]
[1717778338663,0.00086,71074.0,71073.0,0.9992034]
[1717778339228,0.00086,71074.0,71073.0,0.7992034]
[1717778340099,0.00086,71074.0,71073.0,0.9992034]
[1717778340302,0.00086,71074.0,71073.0,0.7992034]
[1717778342137,0.00086,71074.0,71073.0,0.9992034]
[1717778342546,0.00086,71074.0,71073.0,1.2806034]
[1717778343526,0.00086,71074.0,71073.0,1.0806034]
[1717778343703,0.00086,71074.0,71073.0,1.1413034]
[1717778343908,0.00086,71074.0,71073.0,1.14123206]
[1717778344516,0.00086,71074.0,71073.0,0.77743147]
[1717778344739,0.00086,71074.0,71073.0,0.77913206]
[1717778344935,0.00086,71074.0,71073.0,0.56018258]
[1717778345363,0.00086,71074.0,71073.0,0.57918258]
[1717778345979,0.00086,71074.0,71073.0,0.5993024]
[1717778346200,0.00086,71074.0,71073.0,0.6003024]
[1717778346620,0.00086,71074.0,71073.0,0.5993024]
[1717778346822,0.14527893,71074.0,71073.0,0.31698258]
[1717778347012,0.20597893,71074.0,71073.0,0.31898258]
[1717778347233,0.20567564,71074.0,71073.0,0.31898258]
[1717778347580,0.20567564,71074.0,71073.0,0.31798258]
[1717778347782,0.20567564,71074.0,71073.0,0.31898258]
[1717778348228,0.20567564,71074.0,71073.0,0.31798258]
[1717778348460,0.20567564,71074.0,71073.0,0.31698258]
[1717778348681,0.20567564,71074.0,71073.0,0.31798258]
[1717778348884,0.14497564,71074.0,71073.0,0.31798258]
[1717778349268,0.14497564,71074.0,71073.0,0.31898258]
[1717778350637,0.14497564,71074.0,71073.0,0.31798258]
[1717778351130,0.14497564,71074.0,71073.0,0.31898258]
[1717778351538,0.14497564,71074.0,71073.0,0.31698258]
[1717778351947,0.14497564,71074.0,71073.0,0.31898258]
[1717778354686,0.14497564,71074.0,71073.0,0.17828258]
[1717778355037,0.20567564,71074.0,71073.0,0.16828258]
[1717778355285,0.44327672,71074.0,71073.0,0.16828258]
[1717778355458,0.44327672,71074.0,71073.0,0.17828258]
[1717778355654,0.44327672,71074.0,71073.0,0.16658199]
[1717778356335,0.44327672,71074.0,71073.0,0.16828258]
[1717778356535,0.44327672,71074.0,71073.0,0.17828258]
[1717778357043,0.44327672,71074.0,71073.0,0.16658199]
[1717778357963,0.38257672,71074.0,71073.0,0.16558199]
[1717778358177,0.44327672,71074.0,71073.0,0.16558199]
[1717778358980,0.44327672,71074.0,71073.0,0.16658199]
[1717778359345,0.44327672,71074.0,71073.0,0.16558199]
[1717778359346,0.58397472,71074.0,71073.0,0.16558199]
[1717778360203,0.58397472,71074.0,71073.0,0.16658199]
[1717778360603,0.58397472,71074.0,71073.0,0.16558199]
[1717778360751,0.65110219,71074.0,71073.0,0.16558199]
[1717778360952,0.74420219,71074.0,71073.0,0.02061567]
[1717778361157,0.74420219,71074.0,71073.0,0.01961567]
[1717778361389,0.73420219,71074.0,71073.0,0.000946]
[1717778361599,0.73420219,71074.0,71073.0,0.001946]
[1717778361806,0.74420219,71074.0,71073.0,0.000946]
[1717778362011,1.02559819,71074.0,71073.0,0.000946]
[1717778363055,1.02559819,71074.0,71073.0,0.001946]
[1717778363459,1.02559819,71074.0,71073.0,0.000946]
[1717778364293,0.95847072,71074.0,71073.0,0.000946]
[1717778364901,0.94847072,71074.0,71073.0,0.000946]
[1717778367063,0.95847072,71074.0,71073.0,0.000946]
[1717778367299,0.94816743,71074.0,71073.0,0.000946]
[1717778370681,0.95816743,71074.0,71073.0,0.000946]
[1717778370890,0.98748305,71074.0,71073.0,0.000946]
[1717778371135,1.04818305,71074.0,71073.0,0.000946]
[1717778371778,0.98748305,71074.0,71073.0,0.000946]
[1717778371996,1.04818305,71074.0,71073.0,0.000946]
[1717778372208,0.94816743,71074.0,71073.0,0.000946]
[1717778374880,0.94817987,71074.0,71073.0,0.000946]
[1717778375306,0.41908387,71074.0,71073.0,0.000946]
[1717778375727,0.41908387,71074.0,71073.0,0.03184958]
[1717778377440,0.41908387,71074.0,71073.0,0.02184958]
[1717778377867,0.41908387,71074.0,71073.0,0.02014899]
[1717778378536,0.41908387,71074.0,71073.0,0.02184958]